[Event "Late-Titled-Tuesday-Blitz-March-26-2024"]
[Site "Chess.com"]
[Date "2024.03.26"]
[Round "3"]
[White "Felix-Rose"]
[Black "EternalNight8"]
[Result "1-0"]
[WhiteElo "2254"]
[BlackElo "2450"]
[TimeControl "180+1"]
[EndTime "14:29:59 PDT"]
[Termination "Felix-Rose won on time"]

1. e4 {[%clk 0:03:00.4]} 1... c5 {[%clk 0:03:00]} 2. Nf3 {[%clk 0:03:00.5]} 2...
d6 {[%clk 0:03:00.6]} 3. d4 {[%clk 0:03:00.8]} 3... cxd4 {[%clk 0:03:01.5]} 4.
Nxd4 {[%clk 0:03:01.7]} 4... Nf6 {[%clk 0:03:02]} 5. Nc3 {[%clk 0:03:02.4]} 5...
Nc6 {[%clk 0:03:02.6]} 6. Bg5 {[%clk 0:03:01.5]} 6... Bd7 {[%clk 0:03:02.5]} 7.
Qd2 {[%clk 0:03:00]} 7... Rc8 {[%clk 0:03:02.6]} 8. Bxf6 {[%clk 0:02:59.3]} 8...
gxf6 {[%clk 0:03:02.3]} 9. f4 {[%clk 0:02:54.5]} 9... Nxd4 {[%clk 0:02:44.2]}
10. Qxd4 {[%clk 0:02:54.5]} 10... Bh6 {[%clk 0:02:44.5]} 11. g3 {[%clk
0:02:52.2]} 11... Qa5 {[%clk 0:02:42.6]} 12. O-O-O {[%clk 0:01:52.8]} 12... Qc5
{[%clk 0:02:32.1]} 13. Qd5 {[%clk 0:01:42.5]} 13... f5 {[%clk 0:01:20.9]} 14.
exf5 {[%clk 0:01:36.4]} 14... Bxf5 {[%clk 0:01:20.5]} 15. Bb5+ {[%clk
0:01:28.3]} 15... Kf8 {[%clk 0:01:19.6]} 16. Qxb7 {[%clk 0:01:19.5]} 16... Bg7
{[%clk 0:01:18.7]} 17. Rd5 {[%clk 0:01:13]} 17... Qe3+ {[%clk 0:01:18.5]} 18.
Kb1 {[%clk 0:01:13.1]} 18... Be6 {[%clk 0:01:17.5]} 19. f5 {[%clk 0:01:05.1]}
19... Bxc3 {[%clk 0:00:22.9]} 20. fxe6 {[%clk 0:01:03.6]} 20... Rd8 {[%clk
0:00:14]} 21. bxc3 {[%clk 0:00:37.2]} 21... Qxe6 {[%clk 0:00:10.8]} 22. Rf1
{[%clk 0:00:30.9]} 22... f6 {[%clk 0:00:05.4]} 23. Bc4 {[%clk 0:00:26.8]} 23...
Qd7 {[%clk 0:00:03]} 24. Qb3 {[%clk 0:00:23.3]} 24... Qc7 {[%clk 0:00:02.6]} 25.
Rb5 {[%clk 0:00:22.3]} 25... Kg7 {[%clk 0:00:02.2]} 26. Be6 {[%clk 0:00:21.7]}
26... Rb8 {[%clk 0:00:01.5]} 27. a4 {[%clk 0:00:20.7]} 27... a6 {[%clk
0:00:01.4]} 28. Rb4 {[%clk 0:00:20.4]} 28... a5 {[%clk 0:00:02]} 29. Rb5 {[%clk
0:00:20.6]} 29... Qc6 {[%clk 0:00:02.6]} 30. Rf4 {[%clk 0:00:20.3]} 30... Rxb5
{[%clk 0:00:02.6]} 31. axb5 {[%clk 0:00:20.6]} 31... Qc5 {[%clk 0:00:02]} 32.
Rg4+ {[%clk 0:00:20.3]} 32... Kf8 {[%clk 0:00:02.6]} 33. Qd5 {[%clk 0:00:19.2]}
33... Qg1+ {[%clk 0:00:02]} 34. Ka2 {[%clk 0:00:18.9]} 34... Qa7 {[%clk
0:00:02.3]} 35. Qc6 {[%clk 0:00:18.6]} 35... Qb8 {[%clk 0:00:02.3]} 36. Qe4
{[%clk 0:00:17.5]} 36... Qxb5 {[%clk 0:00:01.8]} 37. Qxh7 {[%clk 0:00:16.1]} 1-0

[Event "Late-Titled-Tuesday-Blitz-March-26-2024"]
[Site "Chess.com"]
[Date "2024.03.26"]
[Round "3"]
[White "a-z30"]
[Black "Mikhail_Golubev"]
[Result "1-0"]
[WhiteElo "2479"]
[BlackElo "2663"]
[TimeControl "180+1"]
[EndTime "14:30:00 PDT"]
[Termination "a-z30 won on time"]

1. d3 {[%clk 0:02:50.1]} 1... g6 {[%clk 0:02:59.1]} 2. Nf3 {[%clk 0:02:50.5]}
2... Bg7 {[%clk 0:02:59.3]} 3. g3 {[%clk 0:02:51.4]} 3... e5 {[%clk 0:02:58.3]}
4. Bg2 {[%clk 0:02:52.1]} 4... Nc6 {[%clk 0:02:56.1]} 5. O-O {[%clk 0:02:52.7]}
5... Nge7 {[%clk 0:02:53.7]} 6. c4 {[%clk 0:02:53.3]} 6... O-O {[%clk
0:02:50.8]} 7. Nc3 {[%clk 0:02:53.7]} 7... d6 {[%clk 0:02:48.8]} 8. Rb1 {[%clk
0:02:53.9]} 8... f5 {[%clk 0:02:47.8]} 9. Nd5 {[%clk 0:02:46.1]} 9... Nxd5
{[%clk 0:02:46.6]} 10. cxd5 {[%clk 0:02:45.7]} 10... Nd4 {[%clk 0:02:39]} 11.
Nd2 {[%clk 0:02:40.4]} 11... f4 {[%clk 0:02:36.6]} 12. e3 {[%clk 0:02:39.3]}
12... Nf5 {[%clk 0:02:22.4]} 13. Ne4 {[%clk 0:02:32.2]} 13... fxe3 {[%clk
0:02:16.2]} 14. Bxe3 {[%clk 0:02:28.7]} 14... Nxe3 {[%clk 0:02:14.2]} 15. fxe3
{[%clk 0:02:28.3]} 15... Bf5 {[%clk 0:02:09.5]} 16. Rc1 {[%clk 0:02:26.4]} 16...
Bh6 {[%clk 0:02:03.5]} 17. Qe2 {[%clk 0:02:25.6]} 17... Qe7 {[%clk 0:01:51.6]}
18. Rc4 {[%clk 0:02:24]} 18... Bxe4 {[%clk 0:01:41.8]} 19. Rxf8+ {[%clk
0:02:11.1]} 19... Rxf8 {[%clk 0:01:41.3]} 20. Rxe4 {[%clk 0:02:03.1]} 20... c5
{[%clk 0:01:35.4]} 21. h4 {[%clk 0:01:36.3]} 21... b5 {[%clk 0:01:20.3]} 22. d4
{[%clk 0:01:35.8]} 22... Bg7 {[%clk 0:01:17.3]} 23. dxc5 {[%clk 0:01:34.4]}
23... dxc5 {[%clk 0:01:16.1]} 24. Qxb5 {[%clk 0:01:33.9]} 24... Qf6 {[%clk
0:00:50.9]} 25. Qxc5 {[%clk 0:00:56.5]} 25... Qf2+ {[%clk 0:00:46.8]} 26. Kh2
{[%clk 0:00:53.9]} 26... Qxb2 {[%clk 0:00:45.7]} 27. Rb4 {[%clk 0:00:51.8]}
27... Qf2 {[%clk 0:00:37]} 28. d6 {[%clk 0:00:39.8]} 28... Rd8 {[%clk
0:00:15.9]} 29. Rb7 {[%clk 0:00:17]} 29... Qf8 {[%clk 0:00:14.5]} 30. Qd5+
{[%clk 0:00:12.1]} 30... Kh8 {[%clk 0:00:14.1]} 31. d7 {[%clk 0:00:12.8]} 31...
a5 {[%clk 0:00:08.3]} 32. Rc7 {[%clk 0:00:13.3]} 32... Qe7 {[%clk 0:00:07.3]}
33. Qc6 {[%clk 0:00:12.9]} 33... Bf6 {[%clk 0:00:06.5]} 34. Rc8 {[%clk
0:00:11.5]} 34... Kg7 {[%clk 0:00:06.6]} 35. Rxd8 {[%clk 0:00:11.1]} 35... Qxd8
{[%clk 0:00:06.6]} 36. Qc8 {[%clk 0:00:11]} 36... Qe7 {[%clk 0:00:06.1]} 37. Qc6
{[%clk 0:00:10.6]} 37... Qd8 {[%clk 0:00:06]} 38. Qd5 {[%clk 0:00:10.7]} 38...
Qe7 {[%clk 0:00:04.8]} 39. Bh3 {[%clk 0:00:10.9]} 39... e4 {[%clk 0:00:04]} 40.
Bg2 {[%clk 0:00:09.2]} 1-0

[Event "Late-Titled-Tuesday-Blitz-March-26-2024"]
[Site "Chess.com"]
[Date "2024.03.26"]
[Round "3"]
[White "Dontmesswithme_2"]
[Black "JaackCamel"]
[Result "1-0"]
[WhiteElo "2410"]
[BlackElo "2183"]
[TimeControl "180+1"]
[EndTime "14:30:00 PDT"]
[Termination "Dontmesswithme_2 won on time"]

1. e4 {[%clk 0:03:00.9]} 1... e6 {[%clk 0:02:59.4]} 2. d4 {[%clk 0:03:00]} 2...
d5 {[%clk 0:02:58.9]} 3. Nc3 {[%clk 0:02:59.3]} 3... Bb4 {[%clk 0:02:58.1]} 4.
e5 {[%clk 0:02:58.4]} 4... Ne7 {[%clk 0:02:57.5]} 5. a3 {[%clk 0:02:57.8]} 5...
Bxc3+ {[%clk 0:02:56.8]} 6. bxc3 {[%clk 0:02:58.7]} 6... b6 {[%clk 0:02:57]} 7.
h4 {[%clk 0:02:51.3]} 7... Ba6 {[%clk 0:02:53.7]} 8. h5 {[%clk 0:02:49.8]} 8...
Bxf1 {[%clk 0:02:52.8]} 9. Kxf1 {[%clk 0:02:50.7]} 9... h6 {[%clk 0:02:51.9]}
10. Qg4 {[%clk 0:02:48]} 10... Nf5 {[%clk 0:02:51.4]} 11. Nf3 {[%clk 0:02:37.8]}
11... Nc6 {[%clk 0:02:46.6]} 12. Nh4 {[%clk 0:02:35.6]} 12... Nce7 {[%clk
0:02:35.8]} 13. Nxf5 {[%clk 0:02:31]} 13... Nxf5 {[%clk 0:02:35.3]} 14. Rh3
{[%clk 0:02:29.3]} 14... Qd7 {[%clk 0:02:23.7]} 15. a4 {[%clk 0:02:26.5]} 15...
a5 {[%clk 0:02:23.3]} 16. Qf4 {[%clk 0:02:24.4]} 16... O-O-O {[%clk 0:02:12.8]}
17. g4 {[%clk 0:02:17.4]} 17... Ne7 {[%clk 0:02:11.4]} 18. Qxf7 {[%clk
0:02:14.2]} 18... Rdf8 {[%clk 0:01:54.9]} 19. Qxg7 {[%clk 0:02:12.3]} 19... Rfg8
{[%clk 0:01:30.8]} 20. Qf6 {[%clk 0:02:04.9]} 20... Rf8 {[%clk 0:01:30.6]} 21.
Qh4 {[%clk 0:02:00]} 21... Rf7 {[%clk 0:01:18.3]} 22. Be3 {[%clk 0:01:43.2]}
22... Qc6 {[%clk 0:01:12.5]} 23. Ra3 {[%clk 0:01:31.6]} 23... Qc4+ {[%clk
0:01:11.6]} 24. Kg2 {[%clk 0:01:30.2]} 24... Qe2 {[%clk 0:01:09.4]} 25. Ra2
{[%clk 0:00:59.2]} 25... Rhf8 {[%clk 0:01:08.7]} 26. Qg3 {[%clk 0:00:45]} 26...
Rg8 {[%clk 0:00:57]} 27. g5 {[%clk 0:00:30.4]} 27... Nf5 {[%clk 0:00:37.5]} 28.
g6 {[%clk 0:00:29.5]} 28... Nxg3 {[%clk 0:00:36.2]} 29. gxf7 {[%clk 0:00:28.9]}
29... Qf1+ {[%clk 0:00:20.4]} 30. Kf3 {[%clk 0:00:28.6]} 30... Rf8 {[%clk
0:00:18.7]} 31. Rxg3 {[%clk 0:00:27.1]} 31... Rxf7+ {[%clk 0:00:17.7]} 32. Kg4
{[%clk 0:00:27.5]} 32... Qe2+ {[%clk 0:00:14.2]} 33. Kh4 {[%clk 0:00:26.2]}
33... Kb7 {[%clk 0:00:09.5]} 34. Ra1 {[%clk 0:00:26.1]} 34... Qxc2 {[%clk
0:00:07.7]} 35. Rag1 {[%clk 0:00:26.4]} 35... Qe4+ {[%clk 0:00:07.5]} 36. Rg4
{[%clk 0:00:25.5]} 36... Qf3 {[%clk 0:00:06.2]} 37. R1g3 {[%clk 0:00:26]} 37...
Qh1+ {[%clk 0:00:05.2]} 38. Rh3 {[%clk 0:00:26.7]} 38... Qf1 {[%clk 0:00:04.6]}
39. Rg6 {[%clk 0:00:26.2]} 39... Rf5 {[%clk 0:00:04.6]} 40. Rxh6 {[%clk
0:00:25.7]} 40... Qe2 {[%clk 0:00:04.7]} 41. Rg3 {[%clk 0:00:20.4]} 41... Qf1
{[%clk 0:00:02.4]} 42. Rh7 {[%clk 0:00:17.7]} 42... Kc6 {[%clk 0:00:01.7]} 43.
Kg4 {[%clk 0:00:16.6]} 1-0

[Event "Late-Titled-Tuesday-Blitz-March-26-2024"]
[Site "Chess.com"]
[Date "2024.03.26"]
[Round "3"]
[White "GarciaIsaac"]
[Black "Viktor_Poddubnyi"]
[Result "1-0"]
[WhiteElo "2648"]
[BlackElo "2304"]
[TimeControl "180+1"]
[EndTime "14:30:00 PDT"]
[Termination "GarciaIsaac won on time"]

1. e4 {[%clk 0:02:59.1]} 1... g6 {[%clk 0:03:00.3]} 2. d4 {[%clk 0:02:58.1]}
2... Bg7 {[%clk 0:03:00.7]} 3. Nc3 {[%clk 0:02:58.2]} 3... d6 {[%clk 0:03:01.1]}
4. Nf3 {[%clk 0:02:58.2]} 4... Nf6 {[%clk 0:03:00.7]} 5. Be2 {[%clk 0:02:56.1]}
5... c6 {[%clk 0:03:00.7]} 6. a4 {[%clk 0:02:55.4]} 6... O-O {[%clk 0:03:00.8]}
7. O-O {[%clk 0:02:55.3]} 7... Nbd7 {[%clk 0:03:01.3]} 8. e5 {[%clk 0:02:52.2]}
8... Nd5 {[%clk 0:02:20.3]} 9. Nxd5 {[%clk 0:02:47.8]} 9... cxd5 {[%clk
0:02:21.2]} 10. exd6 {[%clk 0:02:48]} 10... exd6 {[%clk 0:02:21.3]} 11. c3
{[%clk 0:02:45.9]} 11... Nf6 {[%clk 0:02:20.8]} 12. Bf4 {[%clk 0:02:42.2]} 12...
h6 {[%clk 0:02:16.3]} 13. h3 {[%clk 0:02:41.5]} 13... Be6 {[%clk 0:02:14.8]} 14.
Qb3 {[%clk 0:02:37.7]} 14... Qc7 {[%clk 0:02:08.2]} 15. Rfe1 {[%clk 0:02:26.7]}
15... Rfe8 {[%clk 0:02:07.4]} 16. Bd3 {[%clk 0:02:25.6]} 16... Ne4 {[%clk
0:01:58.1]} 17. a5 {[%clk 0:02:16.3]} 17... g5 {[%clk 0:01:40.3]} 18. Bh2 {[%clk
0:02:15.2]} 18... f5 {[%clk 0:01:39.1]} 19. Re2 {[%clk 0:02:05.6]} 19... Qf7
{[%clk 0:01:10.2]} 20. Ne1 {[%clk 0:02:02.4]} 20... f4 {[%clk 0:00:56.2]} 21.
Qc2 {[%clk 0:01:37.4]} 21... Rf8 {[%clk 0:00:17.9]} 22. f3 {[%clk 0:01:21.2]}
22... Ng3 {[%clk 0:00:14.5]} 23. Bxg3 {[%clk 0:01:20.3]} 23... fxg3 {[%clk
0:00:15.4]} 24. Bg6 {[%clk 0:01:01.9]} 24... Qf6 {[%clk 0:00:14.9]} 25. Qd3
{[%clk 0:00:51]} 25... g4 {[%clk 0:00:13.5]} 26. hxg4 {[%clk 0:00:49.2]} 26...
Bxg4 {[%clk 0:00:07.9]} 27. Bh7+ {[%clk 0:00:16.1]} 27... Kh8 {[%clk 0:00:07.7]}
28. Qe3 {[%clk 0:00:11.2]} 28... Kxh7 {[%clk 0:00:05.9]} 29. Nd3 {[%clk
0:00:10.3]} 29... Qh4 {[%clk 0:00:05.5]} 30. Kf1 {[%clk 0:00:09.5]} 30... Qh1+
{[%clk 0:00:04.8]} 31. Qg1 {[%clk 0:00:08.4]} 31... Qxg1+ {[%clk 0:00:05.1]} 32.
Kxg1 {[%clk 0:00:09.3]} 32... Bf5 {[%clk 0:00:04.5]} 33. Nb4 {[%clk 0:00:09.1]}
33... Rae8 {[%clk 0:00:03.3]} 34. Rae1 {[%clk 0:00:08]} 34... Rxe2 {[%clk
0:00:03]} 35. Rxe2 {[%clk 0:00:08.9]} 1-0

[Event "Late-Titled-Tuesday-Blitz-March-26-2024"]
[Site "Chess.com"]
[Date "2024.03.26"]
[Round "3"]
[White "Kildepiotr"]
[Black "ContrVersia"]
[Result "0-1"]
[WhiteElo "2725"]
[BlackElo "2931"]
[TimeControl "180+1"]
[EndTime "14:30:01 PDT"]
[Termination "ContrVersia won by resignation"]

1. e4 {[%clk 0:03:00.9]} 1... c5 {[%clk 0:02:59.9]} 2. Nf3 {[%clk 0:03:00.3]}
2... a6 {[%clk 0:03:00.4]} 3. c3 {[%clk 0:03:00.1]} 3... e6 {[%clk 0:03:00.6]}
4. d4 {[%clk 0:03:00]} 4... d5 {[%clk 0:03:01.2]} 5. exd5 {[%clk 0:02:58.6]}
5... exd5 {[%clk 0:03:02.1]} 6. Be2 {[%clk 0:02:58.6]} 6... Nc6 {[%clk
0:03:01.5]} 7. O-O {[%clk 0:02:58.1]} 7... h6 {[%clk 0:03:02]} 8. dxc5 {[%clk
0:02:57.3]} 8... Bxc5 {[%clk 0:03:01.8]} 9. Nbd2 {[%clk 0:02:58]} 9... Nf6
{[%clk 0:03:01.6]} 10. Nb3 {[%clk 0:02:58]} 10... Bb6 {[%clk 0:03:02]} 11. Nfd4
{[%clk 0:02:53.7]} 11... O-O {[%clk 0:03:00.3]} 12. Be3 {[%clk 0:02:53]} 12...
Re8 {[%clk 0:02:58.9]} 13. Re1 {[%clk 0:02:50.8]} 13... Ne4 {[%clk 0:02:57.7]}
14. Qd3 {[%clk 0:02:40.4]} 14... Ne5 {[%clk 0:02:48.7]} 15. Qc2 {[%clk
0:02:39.7]} 15... Qf6 {[%clk 0:02:43]} 16. Nd2 {[%clk 0:02:27.4]} 16... Qg6
{[%clk 0:02:17.1]} 17. Nxe4 {[%clk 0:01:55.4]} 17... dxe4 {[%clk 0:02:16.5]} 18.
Bf4 {[%clk 0:01:42.2]} 18... Bg4 {[%clk 0:01:25.5]} 19. Bxe5 {[%clk 0:01:36]}
19... Bxe2 {[%clk 0:01:25.5]} 20. Rxe2 {[%clk 0:01:31.4]} 20... Rxe5 {[%clk
0:01:25.3]} 21. Rae1 {[%clk 0:01:31.1]} 21... Rae8 {[%clk 0:01:23.8]} 22. Re3
{[%clk 0:01:23.7]} 22... f5 {[%clk 0:01:21.8]} 23. f3 {[%clk 0:01:17.8]} 23...
h5 {[%clk 0:00:37.8]} 24. fxe4 {[%clk 0:01:09]} 24... fxe4 {[%clk 0:00:38.7]}
25. Kh1 {[%clk 0:01:00.3]} 25... h4 {[%clk 0:00:38.3]} 26. Rf1 {[%clk
0:00:58.7]} 26... Kh7 {[%clk 0:00:34.4]} 27. Qf2 {[%clk 0:00:57.5]} 27... Bd8
{[%clk 0:00:25]} 28. Qe2 {[%clk 0:00:40.3]} 28... Bg5 {[%clk 0:00:21.9]} 29. Rh3
{[%clk 0:00:39.5]} 29... Bf6 {[%clk 0:00:20.2]} 30. Nc2 {[%clk 0:00:29.2]} 30...
Rf5 {[%clk 0:00:18.9]} 31. Rxf5 {[%clk 0:00:27.5]} 31... Qxf5 {[%clk 0:00:19.8]}
32. Ne3 {[%clk 0:00:26]} 32... Qg5 {[%clk 0:00:19.6]} 33. Qg4 {[%clk 0:00:19.8]}
33... Qxg4 {[%clk 0:00:08.5]} 34. Nxg4 {[%clk 0:00:20.7]} 34... Bg5 {[%clk
0:00:09]} 35. g3 {[%clk 0:00:14.1]} 35... Kg6 {[%clk 0:00:08.8]} 36. gxh4 {[%clk
0:00:14.3]} 36... Bd2 {[%clk 0:00:09.5]} 37. Rg3 {[%clk 0:00:10.6]} 37... Kf5
{[%clk 0:00:09.8]} 38. Ne3+ {[%clk 0:00:10.9]} 38... Bxe3 {[%clk 0:00:09.6]} 39.
Rxe3 {[%clk 0:00:11.3]} 39... Kf4 {[%clk 0:00:10.5]} 40. Re1 {[%clk 0:00:11.1]}
40... e3 {[%clk 0:00:11.1]} 41. Kg2 {[%clk 0:00:11.7]} 41... Ke4 {[%clk
0:00:09.8]} 42. Rf1 {[%clk 0:00:09.3]} 42... e2 {[%clk 0:00:09.9]} 43. Re1
{[%clk 0:00:08.2]} 43... Ke3 {[%clk 0:00:10.3]} 0-1

[Event "Late-Titled-Tuesday-Blitz-March-26-2024"]
[Site "Chess.com"]
[Date "2024.03.26"]
[Round "3"]
[White "Harsha_Bharathakoti"]
[Black "Evandro_Barbosa"]
[Result "1-0"]
[WhiteElo "2908"]
[BlackElo "2668"]
[TimeControl "180+1"]
[EndTime "14:30:01 PDT"]
[Termination "Harsha_Bharathakoti won on time"]

1. c4 {[%clk 0:03:00.9]} 1... c5 {[%clk 0:03:00]} 2. Nf3 {[%clk 0:03:01]} 2...
Nc6 {[%clk 0:03:00.3]} 3. d4 {[%clk 0:03:01.3]} 3... cxd4 {[%clk 0:03:00.5]} 4.
Nxd4 {[%clk 0:03:02.2]} 4... g6 {[%clk 0:03:00]} 5. e4 {[%clk 0:03:02.1]} 5...
Bg7 {[%clk 0:02:59]} 6. Be3 {[%clk 0:03:02.5]} 6... Nf6 {[%clk 0:02:59.4]} 7.
Nc3 {[%clk 0:03:02.3]} 7... O-O {[%clk 0:02:59.8]} 8. Be2 {[%clk 0:02:59]} 8...
d6 {[%clk 0:02:59.9]} 9. h4 {[%clk 0:02:46.6]} 9... Nxd4 {[%clk 0:02:54.9]} 10.
Bxd4 {[%clk 0:02:45.7]} 10... Be6 {[%clk 0:02:55.1]} 11. h5 {[%clk 0:02:25.5]}
11... Qa5 {[%clk 0:02:53.4]} 12. hxg6 {[%clk 0:02:25.1]} 12... hxg6 {[%clk
0:02:52.4]} 13. Kf1 {[%clk 0:02:05]} 13... Rfc8 {[%clk 0:02:46.3]} 14. b3 {[%clk
0:02:05.3]} 14... a6 {[%clk 0:02:44.8]} 15. a4 {[%clk 0:01:31.2]} 15... Nd7
{[%clk 0:02:31.1]} 16. Nd5 {[%clk 0:01:19.4]} 16... Bxd5 {[%clk 0:02:17.1]} 17.
exd5 {[%clk 0:01:19.7]} 17... Nc5 {[%clk 0:01:24.9]} 18. Rh3 {[%clk 0:00:43.8]}
18... e5 {[%clk 0:01:10.1]} 19. dxe6 {[%clk 0:00:43.9]} 19... Nxe6 {[%clk
0:01:10]} 20. Bxg7 {[%clk 0:00:44.1]} 20... Kxg7 {[%clk 0:01:09.7]} 21. Qxd6
{[%clk 0:00:39.7]} 21... Rh8 {[%clk 0:01:00]} 22. Bg4 {[%clk 0:00:38.7]} 22...
Rxh3 {[%clk 0:00:55.8]} 23. Bxh3 {[%clk 0:00:38.9]} 23... Qc3 {[%clk 0:00:48.5]}
24. Re1 {[%clk 0:00:35]} 24... Ng5 {[%clk 0:00:42.1]} 25. Qe5+ {[%clk
0:00:34.5]} 25... Qxe5 {[%clk 0:00:41.8]} 26. Rxe5 {[%clk 0:00:35.4]} 26... Kf6
{[%clk 0:00:35.7]} 27. Rd5 {[%clk 0:00:32.9]} 27... Rh8 {[%clk 0:00:25.3]} 28.
Rd7 {[%clk 0:00:27.1]} 28... Rb8 {[%clk 0:00:19.8]} 29. Bg4 {[%clk 0:00:18.6]}
29... Ne4 {[%clk 0:00:16.9]} 30. b4 {[%clk 0:00:19.3]} 30... a5 {[%clk
0:00:16.4]} 31. bxa5 {[%clk 0:00:17.5]} 31... Nc5 {[%clk 0:00:16.6]} 32. Rd5
{[%clk 0:00:17.7]} 32... Nxa4 {[%clk 0:00:16.4]} 33. Rb5 {[%clk 0:00:17.2]}
33... Nc3 {[%clk 0:00:12.8]} 34. Rb6+ {[%clk 0:00:17.1]} 34... Ke5 {[%clk
0:00:12.2]} 35. a6 {[%clk 0:00:08.4]} 35... Ra8 {[%clk 0:00:11.2]} 36. f4+
{[%clk 0:00:08]} 36... Kxf4 {[%clk 0:00:09.4]} 37. axb7 {[%clk 0:00:08.9]} 37...
Ra1+ {[%clk 0:00:07.3]} 38. Kf2 {[%clk 0:00:09.6]} 38... Ra2+ {[%clk 0:00:04.5]}
39. Kg1 {[%clk 0:00:06.4]} 1-0

[Event "Late-Titled-Tuesday-Blitz-March-26-2024"]
[Site "Chess.com"]
[Date "2024.03.26"]
[Round "3"]
[White "SaqoChess_Twitch"]
[Black "XDPS"]
[Result "1/2-1/2"]
[WhiteElo "2659"]
[BlackElo "2896"]
[TimeControl "180+1"]
[EndTime "14:30:03 PDT"]
[Termination "Game drawn by repetition"]

1. d4 {[%clk 0:03:00.9]} 1... Nf6 {[%clk 0:02:58]} 2. c4 {[%clk 0:03:01.5]} 2...
d6 {[%clk 0:02:57.1]} 3. Nc3 {[%clk 0:03:02.2]} 3... g6 {[%clk 0:02:57.1]} 4.
Nf3 {[%clk 0:03:02.7]} 4... Bg7 {[%clk 0:02:57.4]} 5. h3 {[%clk 0:03:03.5]} 5...
O-O {[%clk 0:02:57.7]} 6. Bf4 {[%clk 0:03:04.2]} 6... Nbd7 {[%clk 0:02:54.8]} 7.
e3 {[%clk 0:03:04.9]} 7... b6 {[%clk 0:02:54.3]} 8. Be2 {[%clk 0:03:05.5]} 8...
Bb7 {[%clk 0:02:54.7]} 9. O-O {[%clk 0:03:06.1]} 9... Ne4 {[%clk 0:02:50.9]} 10.
Nxe4 {[%clk 0:03:06.6]} 10... Bxe4 {[%clk 0:02:51.8]} 11. Nd2 {[%clk 0:03:07.2]}
11... Bb7 {[%clk 0:02:51.4]} 12. Bf3 {[%clk 0:03:07.8]} 12... Qc8 {[%clk
0:02:51.5]} 13. Bxb7 {[%clk 0:03:07.6]} 13... Qxb7 {[%clk 0:02:52.4]} 14. Qf3
{[%clk 0:03:08.5]} 14... Rfb8 {[%clk 0:02:52.7]} 15. Qxb7 {[%clk 0:03:08.5]}
15... Rxb7 {[%clk 0:02:53.6]} 16. Nf3 {[%clk 0:03:09.1]} 16... c5 {[%clk
0:02:53.9]} 17. Rfd1 {[%clk 0:03:07.8]} 17... b5 {[%clk 0:02:53]} 18. cxb5
{[%clk 0:03:06]} 18... Rxb5 {[%clk 0:02:52.4]} 19. b3 {[%clk 0:03:06.3]} 19...
a5 {[%clk 0:02:51.6]} 20. Rac1 {[%clk 0:03:05.8]} 20... a4 {[%clk 0:02:51]} 21.
bxa4 {[%clk 0:03:01.6]} 21... Rxa4 {[%clk 0:02:51.9]} 22. Rc2 {[%clk 0:03:02.3]}
22... h6 {[%clk 0:02:37.4]} 23. g4 {[%clk 0:02:58.4]} 23... Rba5 {[%clk
0:02:30.1]} 24. dxc5 {[%clk 0:02:57.8]} 24... Rxc5 {[%clk 0:02:28.2]} 25. Rdd2
{[%clk 0:02:55]} 25... g5 {[%clk 0:02:24.9]} 26. Bg3 {[%clk 0:02:54.5]} 26...
Rxc2 {[%clk 0:02:24]} 27. Rxc2 {[%clk 0:02:54.4]} 27... Nc5 {[%clk 0:02:24.6]}
28. Kf1 {[%clk 0:02:51.4]} 28... Ne4 {[%clk 0:02:22.5]} 29. Nd2 {[%clk 0:02:05]}
29... Nc3 {[%clk 0:02:20.2]} 30. f4 {[%clk 0:02:02.7]} 30... Nxa2 {[%clk
0:01:59.4]} 31. f5 {[%clk 0:02:02.4]} 31... Nc3 {[%clk 0:01:52.5]} 32. Kf2
{[%clk 0:01:52.8]} 32... Bf6 {[%clk 0:01:44.4]} 33. Kf3 {[%clk 0:01:52.4]} 33...
d5 {[%clk 0:01:34.3]} 34. Nb3 {[%clk 0:01:51.2]} 34... Ra3 {[%clk 0:01:29.1]}
35. Nc5 {[%clk 0:01:40.6]} 35... d4 {[%clk 0:01:16.2]} 36. Nd7 {[%clk
0:01:34.9]} 36... Nd5 {[%clk 0:00:56.2]} 37. Nxf6+ {[%clk 0:01:17.6]} 37... Nxf6
{[%clk 0:00:41.1]} 38. Re2 {[%clk 0:01:02.5]} 38... Nd5 {[%clk 0:00:40.5]} 39.
Be5 {[%clk 0:00:46.2]} 39... Rxe3+ {[%clk 0:00:32.6]} 40. Rxe3 {[%clk
0:00:46.2]} 40... dxe3 {[%clk 0:00:33.5]} 41. Bg3 {[%clk 0:00:24.2]} 41... e6
{[%clk 0:00:33]} 42. fxe6 {[%clk 0:00:22.4]} 42... fxe6 {[%clk 0:00:33.9]} 43.
h4 {[%clk 0:00:22.8]} 43... Kf7 {[%clk 0:00:32.2]} 44. hxg5 {[%clk 0:00:22.8]}
44... hxg5 {[%clk 0:00:33.1]} 45. Be5 {[%clk 0:00:21.1]} 45... Kg6 {[%clk
0:00:28.1]} 46. Bd4 {[%clk 0:00:20.6]} 46... Kf7 {[%clk 0:00:25.1]} 47. Be5
{[%clk 0:00:20.8]} 47... Ke7 {[%clk 0:00:25.5]} 48. Bg7 {[%clk 0:00:18.3]} 48...
Kf7 {[%clk 0:00:22.2]} 49. Be5 {[%clk 0:00:18.4]} 1/2-1/2